[Event "ESP-chT Honor Division 2022"]
[Site "Linares"]
[Date "2022.09.21"]
[Round "5.2"]
[White "Alekseenko, Kirill"]
[Black "Anton Guijarro, David"]
[Result "0-1"]
[ECO "C55"]
[WhiteElo "2707"]
[BlackElo "2662"]
[Annotator "TA"]
[PlyCount "180"]
[EventDate "2022.09.17"]
[EventType "team-tourn"]
[EventCountry "ESP"]
[SourceTitle "playchess.com"]
[Source "ChessBase"]
[SourceQuality "1"]
[TimeControl "5400+30"]

{[%evp 24,180,25,14,6,0,14,0,0,-6,-5,0,0,-5,0,0,-6,-42,-45,-36,-28,-52,-44,-43,-43,-62,-54,-66,-20,-25,-22,-35,-37,-28,-33,-25,-20,-19,-18,-28,-23,-17,-24,-70,-77,-79,-73,-123,-105,-92,-62,-63,-71,-61,-51,-62,-49,-58,-55,-77,-42,-47,-32,-70,-6,-45,-43,-67,-51,-60,-53,-74,-20,-21,-31,-96,-105,-120,-107,-120,-12,-258,-264,-268,-256,-289,-292,-324,-286,-320,-301,-307,-268,-282,-203,-454,-336,-428,-368,-367,-352,-381,-360,-365,-311,-312,-301,-296,-245,-407,-342,-616,-618,-1106,-1129,-1356,-1384,-1693,-1443,-1699,-1786,-1799,-1736,-1312,-1032,-995,-975,-1403,-453,-450,-443,-871,-853,-956,-937,-839,-836,-29973,-29974,-12797,-5431,-29982,-29983,-29983,-29984,-29984,-29985,-29984,-29984,-29984,-29985,-29988,-29989,-29989,-29990,-29992,-29993,-29993,-29993]} 1. e4 {[%emt 0:01:32]} e5 {[%emt 0:00:11]} 2. Nf3 {[%emt 0:00:26]} Nc6 {[%emt 0:00:17]} 3. Bc4 {[%emt 0:00:27]} Nf6 {[%emt 0:00:34]} 4. d3 {[%emt 0:00:27]} Be7 {[%emt 0:00:20]} 5. Nc3 {[%emt 0:04:36]} d6 {[%emt 0:02:54]} 6. a3 {[%emt 0:00:13]} O-O {[%emt 0:00:27]} 7. O-O {[%emt 0:00:53]} h6 {[%emt 0:00:58]} 8. Re1 {[%emt 0:02:30]} Re8 {[%emt 0:00:31]} 9. h3 {[%emt 0:06:20]} Bf8 {[%emt 0:00:59]} 10. Be3 {[%emt 0:04:42]} a6 {[%emt 0:00:27]} 11. Nd5 {[%emt 0:12:11]} Nxd5 {[%emt 0:06:24]} 12. Bxd5 {[%emt 0:00:08]} Ne7 {[%emt 0:00:53]} 13. Ba2 {[%emt 0:02:47]} Ng6 {[%emt 0:01:34]} 14. d4 {[%emt 0:07:35]} exd4 {[%emt 0:03:29]} 15. Bxd4 {[%emt 0:10:18]} Be6 {[%emt 0:01:09]} 16. Bd5 {[%emt 0:08:12]} c6 {[%emt 0:08:56]} 17. Bxe6 {[%emt 0:00:07]} Rxe6 {[%emt 0:00:06]} 18. c4 {[%emt 0:00:27]} Qd7 {[%emt 0:15:39]} 19. Bc3 {[%emt 0:10:50]} Qe7 {[%emt 0:13:23]} 20. Qb3 {[%emt 0:02:14]} c5 $1 {[%emt 0:00:20]} 21. Qc2 {[%emt 0:05:12]} Re8 {[%emt 0:01:17]} 22. Nd2 {[%emt 0:00:22]} Nf4 {[%emt 0:09:24]} 23. Kh2 {[%emt 0:02:50]} d5 {[%emt 0:01:40]} (23... Qg5 24. g3 $11) 24. cxd5 {[%emt 0:03:08]} ({Don't blunder} 24. g3 $2 d4 25. Ba5 (25. gxf4 $2 Qh4 $19) 25... b6 $19) 24... Nxd5 {[%emt 0:00:14]} 25. Rad1 {[%emt 0:01:07]} b5 {[%emt 0:07:38]} (25... Nxc3 $15 {was preferrable.} 26. bxc3 Qc7+ 27. Kh1 Qf4) 26. Nb1 $11 {[%emt 0:00:11]} Nf4 {[%emt 0:05:30]} 27. g3 {[%emt 0:00:21]} Ng6 {[%emt 0:00:36]} 28. Nd2 {[%emt 0:00:44]} Qc7 {[%emt 0:02:21]} 29. Nf3 {[%emt 0:05:44]} Qb7 {[%emt 0:06:49]} 30. Rd5 {[%emt 0:00:29]} c4 {[%emt 0:00:42]} 31. h4 {[%emt 0:01:46]} Ne7 {[%emt 0:02:08]} 32. Rdd1 {[%emt 0:00:35]} Nc8 {[%emt 0:00:56]} 33. Rd5 {[%emt 0:01:19]} (33. Nd2 $11) 33... Nb6 $15 {[%emt 0:01:11]} 34. Re5 {[%emt 0:00:32]} Rxe5 {[%emt 0:01:28]} 35. Bxe5 {[%emt 0:00:20]} (35. Nxe5 $142 Na4 36. Bd4) 35... Nd7 {[%emt 0:00:18]} 36. Bd4 {[%emt 0:00:38]} Nc5 {[%emt 0:00:44]} 37. Bxc5 {[%emt 0:01:36]} Bxc5 {[%emt 0:00:04]} 38. Kg2 {[%emt 0:00:12]} Rd8 {[%emt 0:01:54]} 39. Qc1 {[%emt 0:00:25]} Qb6 {[%emt 0:01:23]} 40. Re2 $1 {[%emt 0:00:27]} Qf6 {[%emt 0:01:17]} 41. Rd2 {[%emt 0:02:24]} Qe7 {[%emt 0:00:16]} 42. Re2 {[%emt 0:00:54]} Rd3 {[%emt 0:00:52]} 43. Qf4 {[%emt 0:00:04]} Qf6 {[%emt 0:01:05]} (43... Qe6 $15) 44. Qg4 {[%emt 0:00:29]} Qe6 {[%emt 0:00:50]} 45. Qf4 {[%emt 0:00:12]} Bd6 {[%emt 0:00:35]} 46. e5 $1 {[%emt 0:01:34]} Bc5 {[%emt 0:01:03]} 47. Re4 {[%emt 0:00:23]} Kh7 {[%emt 0:01:05]} ({Black should play} 47... c3 $17 48. bxc3 Rxc3) 48. h5 $11 {[%emt 0:00:19]} Kg8 {[%emt 0:00:35]} 49. Nh4 {[%emt 0:01:04]} ({White should try} 49. a4 $15) 49... c3 $17 {[%emt 0:00:35]} 50. bxc3 {[%emt 0:01:00]} Rxc3 {[%emt 0:00:05]} 51. Nf5 {[%emt 0:00:11]} Rc4 {[%emt 0:00:46]} ({Weaker is} 51... Bxa3 52. Rd4 Qe8 53. Qg4) (51... Rxa3 $17 {...Ra2 is the strong threat.} 52. Nd4 Bxd4 53. Rxd4 Qe8) 52. Qf3 $2 {[%emt 0:01:55]} (52. Qg4 $1 $11 {and White stays safe.} Bf8 53. Rxc4 bxc4 54. Qe4) 52... Rxe4 $1 $19 {[%emt 0:00:51]} 53. Qxe4 {[%emt 0:00:04]} Bxa3 {[%emt 0:00:32]} 54. Nd4 {[%emt 0:00:44] [#]} Qc4 $1 {[%emt 0:00:39]} 55. Qa8+ {[%emt 0:00:21]} Bf8 {[%emt 0:00:11]} 56. Nc6 {[%emt 0:00:04]} Kh7 {[%emt 0:00:46]} 57. Na5 {[%emt 0:01:35]} Qb4 {[%emt 0:00:28]} 58. Qc8 {[%emt 0:00:43]} Qe4+ {[%emt 0:00:34]} 59. Kh2 $2 {[%emt 0:00:06]} (59. f3 {was forced.} Qb4 60. Qc2+ Kg8 61. Qa2) 59... Ba3 {[%emt 0:00:28]} 60. Qd7 {[%emt 0:00:56]} Qf3 {[%emt 0:00:24]} 61. Qd4 {[%emt 0:00:27]} Qxh5+ {[%emt 0:00:33]} 62. Kg2 {[%emt 0:00:01]} Qf5 {[%emt 0:00:26]} 63. Nb7 {[%emt 0:00:42]} Be7 {[%emt 0:00:30]} 64. Nd6 {[%emt 0:00:06]} Qe6 {[%emt 0:00:15]} 65. f4 {[%emt 0:00:33]} g6 {[%emt 0:00:12]} 66. Qd3 $2 {[%emt 0:00:38]} (66. Qb6) 66... h5 $19 {[%emt 0:00:41]} 67. Qd4 $2 {[%emt 0:00:38]} (67. Kf2) 67... a5 $19 {[%emt 0:00:41]} 68. Kh2 {[%emt 0:00:48]} b4 {[%emt 0:00:17]} 69. Qd3 {[%emt 0:00:33]} b3 {[%emt 0:00:46]} 70. f5 {[%emt 0:00:02]} gxf5 {[%emt 0:00:24]} 71. Nxf5 {[%emt 0:00:02]} Qg6 {[%emt 0:00:31]} 72. Qf3 {[%emt 0:00:30]} Bg5 {[%emt 0:00:39]} 73. e6 {[%emt 0:00:13]} Qxe6 {[%emt 0:00:32]} 74. Nd4 {[%emt 0:00:44]} Qf6 {[%emt 0:00:34]} 75. Qd3+ {[%emt 0:00:05]} Qg6 {[%emt 0:00:22]} (75... Kg7 $142 76. Nxb3 a4) 76. Qxb3 $19 {[%emt 0:00:06]} Be7 {[%emt 0:00:28]} 77. Qd5 {[%emt 0:01:54]} (77. Nb5 $142) 77... a4 $19 {[%emt 0:00:33]} 78. Nf5 {[%emt 0:00:34]} Bf6 {[%emt 0:00:30]} 79. Nd6 {[%emt 0:00:07]} a3 {[%emt 0:00:28]} 80. Nxf7 {[%emt 0:00:13]} Qc2+ {[%emt 0:00:39]} 81. Kh3 {[%emt 0:00:12]} a2 {[%emt 0:00:28]} 82. Nd6 {[%emt 0:01:27]} a1=Q {[%emt 0:00:35]} 83. Qxh5+ {[%emt 0:00:21]} Kg7 {[%emt 0:00:31]} 84. Nf5+ {[%emt 0:00:51]} Kf8 {[%emt 0:00:25]} 85. Qh6+ {[%emt 0:00:10]} Bg7 {[%emt 0:00:35]} 86. Qd6+ {[%emt 0:00:16]} Kf7 {[%emt 0:00:31]} 87. Qe7+ {[%emt 0:01:19] [#]} Kg6 $1 {[%emt 0:00:28]} ({Worse is} 87... Kg8 88. Qe8+ Bf8 89. Qg6+ Qg7 90. Nh6+ Kh8 91. Nf7+ Kg8 92. Nh6+ Kh8 93. Nf7+ Qxf7 94. Qxf7 $15) 88. Qe8+ {[%emt 0:00:29]} Kxf5 {[%emt 0:00:22]} 89. Qh5+ {[%emt 0:00:30]} Kf6 {[%emt 0:00:27]} 90. Qh4+ {[%emt 0:00:22]} Kf7 {[%emt 0:00:20]} 0-1

[Event "ESP-chT Honor Division 2022"]
[Site "Linares"]
[Date "2022.09.21"]
[Round "5.3"]
[White "Kuzubov, Yuriy"]
[Black "Korobov, Anton"]
[Result "1/2-1/2"]
[ECO "A50"]
[WhiteElo "2627"]
[BlackElo "2671"]
[Annotator "TA"]
[PlyCount "41"]
[EventDate "2022.09.17"]
[EventType "team-tourn"]
[EventCountry "ESP"]
[SourceTitle "playchess.com"]
[Source "ChessBase"]
[SourceQuality "1"]
[TimeControl "5400+30"]

{[%evp 9,41,31,29,21,16,19,22,13,18,3,20,0,0,0,0,0,0,0,0,0,0,0,0,0,0,0,7,0,0,0,7,0,0,0]} 1. d4 {[%emt 0:00:04]} Nf6 {[%emt 0:00:08]} 2. c4 {[%emt 0:00:08]} g6 {[%emt 0:00:15]} 3. f3 {[%emt 0:09:28]} Nc6 {[%emt 0:06:19]} 4. Nc3 {[%emt 0:03:29]} d5 {[%emt 0:03:08]} 5. cxd5 {[%emt 0:02:15]} Nxd5 {[%emt 0:00:16]} 6. e4 {[%emt 0:00:06] E60: King's Indian: Unusual lines and Fianchetto Variation without Nc3.} Nxc3 {[%emt 0:00:35] The position is equal.} 7. bxc3 {[%emt 0:00:07]} e5 {[%emt 0:02:20][%cal Re5d4]} 8. Bb5 {[%emt 0:12:39][%cal Bf1b5,Bb5c4,Bc4f7][%mdl 32]} Bd7 {[%emt 0:03:39] [#]} 9. Rb1 $146 {[%emt 0:00:27]} ({Predecessor:} 9. Ne2 Bg7 10. Be3 O-O 11. d5 Na5 12. Bd3 Qe7 13. O-O c5 14. c4 b6 15. Nc3 {0-1 (47) Nikolov,M (2585)-Mchedlishvili,M (2609) Baku 2016}) 9... a6 {[%emt 0:04:26]} 10. Bc4 {[%emt 0:13:37]} Qh4+ {[%emt 0:04:23]} 11. g3 {[%emt 0:02:04]} Qf6 {[%emt 0:00:13][%cal Re5d4]} 12. Ne2 {[%emt 0:17:03]} exd4 {[%emt 0:09:25]} 13. cxd4 {[%emt 0:04:51]} Qxf3 {[%emt 0:03:09]} 14. Rf1 {[%emt 0:00:18]} Qxe4 {[%emt 0:00:48] [#] Hoping for ...0-0-0.} 15. Bxf7+ {[%emt 0:01:59]} Kd8 {[%emt 0:01:57] aiming for ...Kc8.} 16. Bg5+ $1 {[%emt 0:01:57]} Be7 {[%emt 0:01:19]} 17. Rf4 $1 {[%emt 0:02:23]} Qg2 $132 {[%emt 0:04:21][%mdl 2048] Black puts up resistance} 18. Rf2 {[%emt 0:02:03] Dancing on a razor blade.} Qe4 {[%emt 0:00:30]} 19. Rf4 {[%emt 0:00:58]} Qg2 {[%emt 0:00:25]} 20. Rf2 {[%emt 0:00:10]} Qe4 {[%emt 0:00:09]} 21. Rf4 {[%emt 0:00:06] An even fight not without its subleties.  Weighted Error Value: White=0.08 (flawless) /Black=0.07 (flawless)} 1/2-1/2

[Event "ESP-chT Honor Division 2022"]
[Site "Linares"]
[Date "2022.09.21"]
[Round "5.4"]
[White "Alonso Rosell, Alvar"]
[Black "Forcen Esteban, Daniel"]
[Result "1-0"]
[ECO "D37"]
[WhiteElo "2564"]
[BlackElo "2580"]
[Annotator "TA"]
[PlyCount "59"]
[EventDate "2022.09.17"]
[EventType "team-tourn"]
[EventCountry "ESP"]
[SourceTitle "playchess.com"]
[Source "ChessBase"]
[SourceQuality "1"]
[TimeControl "5400+30"]

{[%evp 9,59,33,43,52,50,51,55,47,49,45,54,12,22,8,13,20,39,38,192,206,204,210,207,217,208,208,214,210,217,218,213,216,213,225,216,212,234,236,221,224,306,289,325,322,368,362,401,387,453,446,431,414]} 1. d4 {[%emt 0:00:03]} e6 {[%emt 0:01:11]} 2. c4 {[%emt 0:03:02]} d5 {[%emt 0:01:10]} 3. Nf3 {[%emt 0:08:43]} Nf6 {[%emt 0:01:58]} 4. Nc3 {[%emt 0:02:13]} dxc4 {[%emt 0:06:19]} 5. e4 {[%emt 0:00:20][%cal Be2e4,Be4e5][%mdl 32]} b5 {[%emt 0:00:08]} 6. e5 {[%emt 0:00:07] D24: Queen's Gambit Accepted: 3 Nf3 Nf6 4 Nc3.} Nd5 {[%emt 0:00:03]} 7. Nxb5 {[%emt 0:00:08]} Nb6 {[%emt 0:00:15]} 8. Be2 {[%emt 0:05:22] White is slightly better.} Nc6 {[%emt 0:05:17]} 9. Be3 {[%emt 0:01:02]} Bb7 {[%emt 0:10:31]} 10. a3 {[%emt 0:04:07]} Qd7 {[%emt 0:07:22]} 11. Nc3 {[%emt 0:00:29]} Be7 {[%emt 0:00:21]} 12. Qc2 {[%emt 0:01:41]} h6 {[%emt 0:19:43] [#]} 13. Rd1 $146 {[%emt 0:09:34]} ({Predecessor:} 13. h4 Na5 14. Rd1 Nd5 15. Bd2 Nb6 16. Rh3 O-O-O 17. Be3 Nd5 18. Bc1 g5 19. hxg5 hxg5 20. Nxg5 {1-0 (45) Nesterov,A (2491)-Shemyakinskiy,N (1955) St Petersburg 2021}) 13... g5 $2 {[%emt 0:11:00] Black cannot hold the game after this.} (13... Na5 $14) 14. d5 $1 $18 {[%emt 0:19:27]} Nxd5 {[%emt 0:02:05]} 15. Bxc4 {[%emt 0:03:08][%cal Rc3d5,Be2c4,Bc4d5,Bd5f3][%mdl 32]} O-O-O {[%emt 0:12:32]} 16. Nxd5 {[%emt 0:23:40]} exd5 {[%emt 0:00:13]} 17. Bxd5 {[%emt 0:00:54]} (17. Rxd5 Nb4 $1 18. axb4 Bxd5 $11) 17... g4 {[%emt 0:00:51]} 18. O-O {[%emt 0:00:44]} gxf3 {[%emt 0:01:26]} 19. Bxf3 {[%emt 0:00:21]} Qe6 {[%emt 0:00:59]} 20. Rc1 {[%emt 0:00:20] Hoping for Qa4. Chess con chili.} Rd5 {[%emt 0:00:42] [#]} 21. Qc4 $1 {[%emt 0:00:22][%mdl 64] Pin} ({Weaker is} 21. Bxd5 Qxd5 22. f4 Rg8 $14) 21... Rxe5 {[%emt 0:01:54] Threatens to win with ...Qxc4.} 22. Bxc6 {[%emt 0:01:33]} Bxc6 {[%emt 0:00:33]} 23. Qxc6 {[%emt 0:00:08]} Qxc6 {[%emt 0:00:22]} 24. Rxc6 {[%emt 0:00:03] Strongly threatening Bd4.} Rb5 {[%emt 0:01:08]} 25. Rfc1 {[%emt 0:00:45]} ({Not} 25. Bxa7 Kb7 26. Bd4 Kxc6 $16) 25... Bd8 {[%emt 0:00:07]} 26. Bxh6 {[%emt 0:02:45]} Kb7 {[%emt 0:00:04]} 27. Bf4 {[%emt 0:00:47]} Re8 {[%emt 0:00:03]} 28. Bxc7 {[%emt 0:03:18]} Bg5 {[%emt 0:01:20]} 29. f4 {[%emt 0:00:21]} Be7 {[%emt 0:00:01]} 30. Be5 {[%emt 0:00:11] Weighted Error Value: White=0.03 (flawless) /Black=0.25 (precise)} 1-0

[Event "ESP-chT Honor Division 2022"]
[Site "Linares"]
[Date "2022.09.21"]
[Round "5.5"]
[White "Buksa, Nataliya"]
[Black "Henderson de La Fuente, Lance"]
[Result "1/2-1/2"]
[ECO "C50"]
[WhiteElo "2407"]
[BlackElo "2504"]
[Annotator "TA"]
[PlyCount "92"]
[EventDate "2022.09.17"]
[EventType "team-tourn"]
[EventCountry "ESP"]
[SourceTitle "playchess.com"]
[Source "ChessBase"]
[SourceQuality "1"]
[TimeControl "5400+30"]

{[%evp 10,92,17,16,22,10,5,0,24,0,0,0,9,0,0,0,0,0,7,0,0,0,6,0,17,0,0,0,0,0,0,0,0,-16,0,-16,-2,-18,-18,-38,0,-33,-23,-39,-41,-52,-22,-53,-47,-58,-53,-61,0,-51,-51,-54,-56,-58,-56,-74,-54,-43,-6,-6,-6,-6,0,0,10,0,0,0,10,10,12,14,15,15,15,0,15,0,15,0,20]} 1. e4 {[%emt 0:00:03]} e5 {[%emt 0:00:45]} 2. Nf3 {[%emt 0:00:06]} Nc6 {[%emt 0:00:06]} 3. Bc4 {[%emt 0:00:03]} Bc5 {[%emt 0:00:37]} 4. Nc3 {[%emt 0:00:09]} Nf6 {[%emt 0:00:58]} 5. d3 {[%emt 0:00:04]} h6 {[%emt 0:02:04]} 6. a3 {[%emt 0:00:07]} d6 {[%emt 0:01:43] C50: Hungarian Defence and Giuoco Pianissimo.} 7. Be3 {[%emt 0:00:05] 7.Na4 gains popularity.} Bb6 {[%emt 0:01:02]} 8. h3 {[%emt 0:04:13]} Be6 {[%emt 0:04:24][%cal Of6e4]} 9. Qd2 {[%emt 0:13:18]} O-O {[%emt 0:13:23]} 10. Bxe6 {[%emt 0:28:56]} fxe6 {[%emt 0:00:24] [#]} 11. d4 $146 {[%emt 0:03:28]} ({Predecessor:} 11. g4 Nxe4 12. Nxe4 Rxf3 13. O-O-O Qh4 14. Bxb6 axb6 15. Rdf1 Raf8 16. Kb1 d5 17. Ng3 Nd4 18. Ka2 Qf6 19. Nh5 Qf7 {½-½ (19) Chatila,A-Jawhar,O Beirut 2012}) 11... exd4 {[%emt 0:14:10]} 12. Nxd4 {[%emt 0:00:04]} Nxd4 {[%emt 0:01:52]} 13. Bxd4 {[%emt 0:00:12]} Nh5 {[%emt 0:05:03]} 14. Bxb6 {[%emt 0:08:11]} axb6 {[%emt 0:00:07]} 15. O-O-O {[%emt 0:00:05]} Qf6 {[%emt 0:00:36]} 16. Rhf1 {[%emt 0:01:09][%cal Of2f4]} Qf4 {[%emt 0:03:01]} 17. Kb1 {[%emt 0:02:02]} Qxd2 {[%emt 0:05:50]} 18. Rxd2 {[%emt 0:00:03]} Nf4 {[%emt 0:01:20]} 19. Rg1 {[%emt 0:03:42]} g5 {[%emt 0:01:33]} 20. f3 {[%emt 0:01:42]} Rf7 {[%emt 0:04:48]} 21. Ne2 {[%emt 0:00:05]} Kg7 {[%emt 0:02:23]} 22. Kc1 {[%emt 0:01:25]} Kf6 {[%emt 0:01:23]} 23. Nc3 {[%emt 0:04:18]} h5 {[%emt 0:04:00]} 24. Nd1 {[%emt 0:00:16]} Rg8 {[%emt 0:01:16]} 25. Ne3 {[%emt 0:00:04]} Ke7 {[%emt 0:00:29]} 26. Kd1 {[%emt 0:07:58]} Ng6 {[%emt 0:03:18]} 27. Rf2 {[%emt 0:00:15]} Rgf8 {[%emt 0:00:44]} 28. Ke2 {[%emt 0:00:58]} b5 {[%emt 0:01:14]} 29. Rd1 {[%emt 0:01:48]} Ne5 {[%emt 0:03:30]} 30. Rdf1 {[%emt 0:00:11]} Ng6 {[%emt 0:00:49]} 31. Rd1 {[%emt 0:02:13]} c6 {[%emt 0:00:44]} 32. Kf1 {[%emt 0:04:55]} Ne5 {[%emt 0:00:39][%cal Og5g4]} 33. Rdd2 {[%emt 0:00:03]} Rf4 {[%emt 0:02:42]} 34. Kg1 {[%emt 0:07:29]} d5 {[%emt 0:04:40]} 35. exd5 {[%emt 0:00:47]} cxd5 {[%emt 0:00:57]} 36. Rfe2 {[%emt 0:02:32][%cal Oe3d5] The position is equal.} Kd6 {[%emt 0:00:26]} 37. c3 {[%emt 0:00:03]} Nc4 {[%emt 0:03:45]} 38. Rd1 {[%emt 0:00:03]} Ne5 {[%emt 0:01:33]} 39. Rde1 {[%emt 0:02:43] [#] Hoping for Nc2.} Nd3 {[%emt 0:01:13]} 40. Rd1 {[%emt 0:00:03]} Nc5 {[%emt 0:01:03]} 41. Kh2 {[%emt 0:00:22]} Nd7 {[%emt 0:01:05]} 42. Kg3 {[%emt 0:00:44]} Ne5 {[%emt 0:00:29]} 43. Rde1 {[%emt 0:00:39] Black must now prevent Nc2.} Nd3 {[%emt 0:01:53]} 44. Rd1 {[%emt 0:00:04]} Ne5 {[%emt 0:00:21]} 45. Rde1 {[%emt 0:00:03] Strongly threatening Nc2.} Nd3 {[%emt 0:00:24]} 46. Rd1 {[%emt 0:00:06]} Ne5 {[%emt 0:00:13] Weighted Error Value: White=0.09 (flawless) /Black=0.07 (flawless)} 1/2-1/2

[Event "ESP-chT Honor Division 2022"]
[Site "Linares"]
[Date "2022.09.21"]
[Round "5.6"]
[White "Cramling, Pia"]
[Black "Llorente Zaro, Alfonso"]
[Result "1-0"]
[ECO "D37"]
[WhiteElo "2468"]
[BlackElo "2448"]
[Annotator "TA"]
[PlyCount "117"]
[EventDate "2022.09.17"]
[EventType "team-tourn"]
[EventCountry "ESP"]
[SourceTitle "playchess.com"]
[Source "ChessBase"]
[SourceQuality "1"]
[TimeControl "5400+30"]

{[%evp 19,117,3,8,22,30,14,73,27,19,0,36,36,34,34,38,36,40,33,30,28,31,28,29,29,28,22,28,25,21,7,11,0,0,0,17,14,14,14,28,28,28,28,32,29,28,28,28,28,28,28,28,28,101,101,113,113,134,109,108,85,310,310,310,310,310,310,322,310,991,1019,901,829,864,1226,728,617,1157,1238,609,806,1242,1287,1025,916,29961,1294,29967,29969,29965,29970,29968,29969,29974,29975,29974,29975,29975,29976,29975,29976]} 1. d4 {[%emt 0:00:05]} Nf6 {[%emt 0:00:13]} 2. Nf3 {[%emt 0:00:39]} d5 {[%emt 0:04:06]} 3. c4 {[%emt 0:00:31]} e6 {[%emt 0:00:05]} 4. Nc3 {[%emt 0:00:36]} dxc4 {[%emt 0:05:27]} 5. e3 {[%emt 0:00:45]} a6 {[%emt 0:00:59]} 6. Bxc4 {[%emt 0:00:53]} c5 {[%emt 0:02:29]} 7. O-O {[%emt 0:00:43]} b5 {[%emt 0:04:33]} 8. Be2 {[%emt 0:00:30]} Bb7 {[%emt 0:02:33]} 9. dxc5 {[%emt 0:00:24]} Qxd1 {[%emt 0:00:21]} 10. Rxd1 {[%emt 0:00:08]} Bxc5 {[%emt 0:00:17]} 11. Nd2 {[%emt 0:01:46] D27: Queen's Gambit Accepted: Classical main line: 7 e4!? and 7 a4.} Nbd7 {[%emt 0:32:09]} 12. Nb3 {[%emt 0:01:53] [#]} Ke7 $146 {[%emt 0:15:38]} (12... Bb4 $11 {remains equal.}) ({Predecessor:} 12... Bb6 13. a4 b4 14. a5 Bd8 15. Na4 Bd5 16. Nbc5 Bxa5 17. Bd2 O-O 18. Rdc1 Rfc8 19. Bxa6 {1-0 (37) Carlsen,M (2847)-Hou,Y (2658) chess24.com INT 2021}) 13. Nxc5 {[%emt 0:14:06]} ({Better is} 13. Na5 $16 Ra7 14. a4 (14. Nxb7 Rxb7 15. a4 b4 $11)) 13... Nxc5 $11 {[%emt 0:00:02]} 14. Bd2 {[%emt 0:15:40]} Rhd8 {[%emt 0:07:55]} (14... b4 $5 {[%cal Rb4c3]}) 15. Rac1 {[%emt 0:10:27][%cal Oc3b5]} Rac8 {[%emt 0:00:47]} 16. Nb1 {[%emt 0:00:49]} Ke8 {[%emt 0:01:28]} 17. f3 {[%emt 0:03:45]} Rd6 {[%emt 0:03:42]} 18. e4 {[%emt 0:07:04] Strongly threatening e5.} Nfd7 {[%emt 0:00:46]} 19. b3 {[%emt 0:09:40]} f6 {[%emt 0:00:15]} 20. Bb4 {[%emt 0:00:47]} Rxd1+ {[%emt 0:00:09]} 21. Rxd1 {[%emt 0:00:12]} e5 {[%emt 0:02:03]} 22. Rc1 {[%emt 0:06:15]} Ne6 {[%emt 0:00:37]} 23. Rxc8+ {[%emt 0:00:09]} Bxc8 {[%emt 0:00:02]} 24. Kf2 {[%emt 0:00:46]} Nb8 {[%emt 0:02:03]} 25. Ke3 {[%emt 0:02:03]} Nc6 {[%emt 0:01:02]} 26. Bc3 {[%emt 0:00:06]} Ncd4 {[%emt 0:00:46]} 27. Bd3 {[%emt 0:00:31]} h6 {[%emt 0:04:35]} 28. Na3 {[%emt 0:02:43]} Bb7 {[%emt 0:01:30]} 29. Nc2 {[%emt 0:03:05]} Nxc2+ {[%emt 0:02:12]} 30. Bxc2 {[%emt 0:00:04][%mdl 4096] Endgame KBB-KBN} Kd7 {[%emt 0:00:11]} 31. g3 {[%emt 0:01:59]} g5 {[%emt 0:01:04]} 32. Bd3 {[%emt 0:00:28]} Bc6 {[%emt 0:00:35]} 33. Bf1 {[%emt 0:01:05]} Ke8 {[%emt 0:01:05]} 34. Bh3 {[%emt 0:04:13]} Bd7 {[%emt 0:01:31]} 35. Bf5 {[%emt 0:00:48]} Ng7 {[%emt 0:01:08]} (35... Kf7 $11 {keeps the balance.}) 36. Bg6+ $16 {[%emt 0:02:13]} Kf8 {[%emt 0:02:11]} 37. f4 $1 {[%emt 0:02:19]} exf4+ {[%emt 0:00:39]} 38. gxf4 {[%emt 0:00:06][%cal Bg3f4,Bf4f5,Bf5g6,Bg6g7][%mdl 32]} Be8 {[%emt 0:00:19]} 39. Bh7 {[%emt 0:05:43] And now Bb4+ would win. White is more active. This bishop pair is nice.} Kf7 $2 {[%emt 0:01:13] This move loses the game for Black.} (39... gxf4+ $16 {was called for.} 40. Kxf4 Kf7) 40. f5 $1 $18 Nh5 {aiming for ...Kg7.} 41. Bg6+ {[%emt 0:01:56]} Ke7 {[%emt 0:00:32]} 42. Bb4+ {[%emt 0:00:40]} Kd7 {[%emt 0:00:01]} 43. Bf8 $1 {[%emt 0:02:13]} Bxg6 $2 {[%emt 0:01:49]} (43... Nf4 44. Bh7 Bh5) 44. fxg6 {[%emt 0:00:02] g7 is the strong threat. KB-KN} Ke6 {[%emt 0:00:05]} 45. Bxh6 {[%emt 0:00:34]} Nf4 {[%emt 0:00:04] [#]} 46. g7 $1 {[%emt 0:00:48]} Kf7 {[%emt 0:00:01]} 47. e5 {[%emt 0:00:12]} Nd5+ {[%emt 0:00:27] [#]} 48. Kf3 $1 {[%emt 0:01:20]} ({Not} 48. Kd4 Ne7 49. Kc5 Ng8 50. Bxg5 fxg5 $11) 48... fxe5 {[%emt 0:00:30]} 49. Bxg5 {[%emt 0:00:15]} Kxg7 {[%emt 0:01:59]} 50. Ke4 $1 {[%emt 0:00:30][%csl LRd5,LRe5]} Nc3+ {[%emt 0:00:32]} 51. Kxe5 {[%emt 0:00:07]} Nxa2 {[%emt 0:00:27]} 52. Bd2 {[%emt 0:00:04] Intending Ke4 and mate.} Kg6 {[%emt 0:00:28]} 53. Kd4 {[%emt 0:00:52] White mates.} Kh5 {[%emt 0:00:44]} 54. Kd3 {[%emt 0:00:42]} a5 {[%emt 0:00:25]} 55. Kc2 {[%emt 0:00:46]} a4 {[%emt 0:00:39]} 56. bxa4 {[%emt 0:00:31]} bxa4 {[%emt 0:00:04]} 57. Kb2 {[%emt 0:00:09]} Kg4 {[%emt 0:00:24]} 58. Kxa2 {[%emt 0:00:07]} Kh3 {[%emt 0:00:02]} 59. Bf4 {[%emt 0:00:06] Weighted Error Value: White=0.04 (flawless) /Black=0.43} 1-0